Workbook

Sheet 封面
A2: 2023年部门预算
A3: 2023-02-06

Sheet 附件1
B1: 附件1 | E1: 表1
B2: 部门收支总表
B3: 部门：中国人民政治协商会议四川省德阳市委员会办公室 | E3: 金额单位：万元
B4: 收 入 | D4: 支 出
B5: 项 目 | C5: 预算数 | D5: 项 目 | E5: 预算数
B6: 一、一般公共预算拨款收入 | C6: 1,969.13 | D6: 一、一般公共服务支出 | E6: 1,605.83
B7: 二、政府性基金预算拨款收入 | D7: 二、外交支出
B8: 三、国有资本经营预算拨款收入 | D8: 三、国防支出
B9: 四、事业收入 | D9: 四、公共安全支出
B10: 五、事业单位经营收入 | D10: 五、教育支出
B11: 六、其他收入 | D11: 六、科学技术支出
D12: 七、文化旅游体育与传媒支出
D13: 八、社会保障和就业支出 | E13: 221.46
D14: 九、社会保险基金支出
D15: 十、卫生健康支出 | E15: 54.03
D16: 十一、节能环保支出
D17: 十二、城乡社区支出
D18: 十三、农林水支出
D19: 十四、交通运输支出
D20: 十五、资源勘探工业信息等支出
D21: 十六、商业服务业等支出
D22: 十七、金融支出
D23: 十八、援助其他地区支出
D24: 十九、自然资源海洋气象等支出
D25: 二十、住房保障支出 | E25: 87.81
D26: 二十一、粮油物资储备支出
D27: 二十二、国有资本经营预算支出
D28: 二十三、灾害防治及应急管理支出
D29: 二十四、预备费
D30: 二十五、其他支出
D31: 二十六、转移性支出
D32: 二十七、债务还本支出
D33: 二十八、债务付息支出
D34: 二十九、债务发行费用支出
D35: 三十、抗疫特别国债安排的支出
D36: 三十一、往来性支出
B37: 本 年 收 入 合 计 | C37: 1,969.13 | D37: 本 年 支 出 合 计 | E37: 1,969.13
B38: 七、用事业基金弥补收支差额 | D38: 三十一、事业单位结余分配
B39: 八、上年结转 | D39: 其中：转入事业基金
D40: 三十二、结转下年
B41: 收 入 总 计 | C41: 1,969.13 | D41: 支 出 总 计 | E41: 1,969.13

Sheet 附件2
C1: 附件2 | N1: 表1-1
B2: 部门收入总表
B3: 部门：中国人民政治协商会议四川省德阳市委员会办公室 | M3: 金额单位：万元
B4: 项 目 | D4: 合计 | E4: 上年结转 | F4: 一般公共预算拨款收入 | G4: 政府性基金预算拨款收入 | H4: 国有资本经营预算拨款收入 | I4: 事业收入 | J4: 事业单位经营收入 | K4: 其他收入 | L4: 上级补助收入 | M4: 附属单位上缴收入 | N4: 用事业基金弥补收支差额
B5: 单位代码 | C5: 单位名称（科目）
C7: 合 计 | D7: 1,969.13 | F7: 1,969.13
B8: 104001 | C8: 中国人民政治协商会议四川省德阳市委员会办公室 | D8: 1,969.13 | F8: 1,969.13

Sheet 附件3
B1: 附件3 | K1: 表1-2
B2: 部门支出总表
B3: 部门：中国人民政治协商会议四川省德阳市委员会办公室 | K3: 金额单位：万元
B4: 项 目 | G4: 合计 | H4: 基本支出 | I4: 项目支出 | J4: 上缴上级支出 | K4: 对附属单位补助支出
B5: 科目编码 | E5: 单位代码 | F5: 单位名称（科目）
B6: 类 | C6: 款 | D6: 项
F7: 合 计 | G7: 1,969.13 | H7: 1,463.98 | I7: 505.15
F8: 中国人民政治协商会议四川省德阳市委员会办公室 | G8: 1,969.13 | H8: 1,463.98 | I8: =SUM(I9:I19) -> 505.15
B9: 201 | C9: 02 | D9: 01 | E9: 104001 | F9: 行政运行 | G9: =SUM(H9:K9) -> 1,011.66 | H9: 1,011.66
B10: 201 | C10: 02 | D10: 02 | E10: 104001 | F10: 一般行政管理事务 | G10: =SUM(H10:K10) -> 310.23 | I10: 310.23
B11: 201 | C11: 02 | D11: 4 | E11: 104001 | F11: 政协会议 | G11: =SUM(H11:K11) -> 194.92 | I11: 194.92
B12: 201 | C12: 02 | D12: 50 | E12: 104001 | F12: 事业运行 | G12: 89.03 | H12: 89.03
B13: 208 | C13: 05 | D13: 01 | E13: 104001 | F13: 行政单位离退休 | G13: 45.84 | H13: 45.84
B14: 208 | C14: 05 | D14: 05 | E14: 104001 | F14: 机关事业单位基本养老保险缴费支出 | G14: 117.08 | H14: 117.08
B15: 208 | C15: 05 | D15: 06 | E15: 104001 | F15: 机关事业单位职业年金缴费支出 | G15: 58.54 | H15: 58.54
B16: 210 | C16: 11 | D16: 01 | E16: 104001 | F16: 行政单位医疗 | G16: 34.48 | H16: 34.48
B17: 210 | C17: 11 | D17: 02 | E17: 104001 | F17: 事业单位医疗 | G17: 3.32 | H17: 3.32
B18: 210 | C18: 11 | D18: 03 | E18: 104001 | F18: 公务员医疗补助 | G18: 16.23 | H18: 16.23
B19: 221 | C19: 02 | D19: 01 | E19: 104001 | F19: 住房公积金 | G19: 87.81 | H19: 87.81

Sheet 附件4
B1: 附件4 | H1: 表2
B2: 财政拨款收支预算总表
B3: 部门：中国人民政治协商会议四川省德阳市委员会办公室 | H3: 金额单位：万元
B4: 收 入 | D4: 支 出
B5: 项 目 | C5: 预算数 | D5: 项 目 | E5: 合计 | F5: 一般公共预算 | G5: 政府性基金预算 | H5: 国有资本经营预算
B6: 一、本年收入 | C6: 1,969.13 | D6: 一、本年支出 | E6: 1,969.13 | F6: 1,969.13
B7: 一般公共预算拨款收入 | C7: 1,969.13 | D7: 一般公共服务支出 | E7: 1,605.83 | F7: 1,605.83
B8: 政府性基金预算拨款收入 | D8: 外交支出
B9: 国有资本经营预算拨款收入 | D9: 国防支出
B10: 一、上年结转 | D10: 公共安全支出
B11: 一般公共预算拨款收入 | D11: 教育支出
B12: 政府性基金预算拨款收入 | D12: 科学技术支出
B13: 国有资本经营预算拨款收入 | D13: 文化旅游体育与传媒支出
D14: 社会保障和就业支出 | E14: 221.46 | F14: 221.46
D15: 社会保险基金支出
D16: 卫生健康支出 | E16: 54.03 | F16: 54.03
D17: 节能环保支出
D18: 城乡社区支出
D19: 农林水支出
D20: 交通运输支出
D21: 资源勘探工业信息等支出
D22: 商业服务业等支出
D23: 金融支出
D24: 援助其他地区支出
D25: 自然资源海洋气象等支出
D26: 住房保障支出 | E26: 87.81 | F26: 87.81
D27: 粮油物资储备支出
D28: 国有资本经营预算支出
D29: 灾害防治及应急管理支出
D30: 其他支出
D31: 债务付息支出
D32: 债务发行费用支出
D33: 抗疫特别国债安排的支出
D34: 往来性支出

Sheet 附件5
B1: 附件5 | AM1: 表2-1
B2: 财政拨款支出预算表（部门经济分类科目）
B3: 部门：中国人民政治协商会议四川省德阳市委员会办公室 | AL3: 金额单位：万元
B4: 项 目 | F4: 总计 | G4: 省级当年财政拨款安排 | Q4: 中央提前通知专项转移支付等 | AA4: 上年结转安排
B5: 科目编码 | D5: 单位代码 | E5: 单位名称（科目） | G5: 合计 | H5: 一般公共预算拨款 | K5: 政府性基金安排 | N5: 国有资本经营预算安排 | Q5: 合计 | R5: 一般公共预算拨款 | U5: 政府性基金安排 | X5: 国有资本经营预算安排 | AA5: 合计 | AB5: 一般公共预算拨款 | AE5: 政府性基金安排 | AH5: 国有资本经营预算安排 | AK5: 上年应返还额度结转
B6: 类 | C6: 款 | H6: 小计 | I6: 基本支出 | J6: 项目支出 | K6: 小计 | L6: 基本支出 | M6: 项目支出 | N6: 小计 | O6: 基本支出 | P6: 项目支出 | R6: 小计 | S6: 基本支出 | T6: 项目支出 | U6: 小计 | V6: 基本支出 | W6: 项目支出 | X6: 小计 | Y6: 基本支出 | Z6: 项目支出 | AB6: 小计 | AC6: 基本支出 | AD6: 项目支出 | AE6: 小计 | AF6: 基本支出 | AG6: 项目支出 | AH6: 小计 | AI6: 基本支出 | AJ6: 项目支出 | AK6: 小计 | AL6: 基本支出 | AM6: 项目支出
E7: 合 计 | F7: 1,969.13 | G7: 1,969.13 | H7: 1,969.13 | I7: 1,463.98 | J7: 505.15
E8: 中国人民政治协商会议四川省德阳市委员会办公室 | F8: 1,969.13 | G8: 1,969.13 | H8: 1,969.13 | I8: 1,463.98 | J8: 505.15
E9: 工资福利支出 | F9: =G9 -> 975.95 | G9: =H9 -> 975.95 | H9: =SUM(I9:J9) -> 975.95 | I9: =SUM(I10:I13) -> 975.95
B10: 501 | C10: 01 | D10: 104001 | E10: 工资奖金津补贴 | F10: 658.31 | G10: =H10 -> 658.31 | H10: =SUM(I10:J10) -> 658.31 | I10: 658.31
B11: 501 | C11: 02 | D11: 104001 | E11: 社会保障缴费 | F11: 209.66 | G11: 209.66 | H11: =SUM(I11:J11) -> 209.66 | I11: 209.66
B12: 501 | C12: 03 | D12: 104001 | E12: 住房公积金 | F12: 79.00 | G12: 79.00 | H12: 79.00 | I12: 79.00
B13: 501 | C13: 99 | D13: 104001 | E13: 其他工资福利支出 | F13: 28.98 | G13: 28.98 | H13: 28.98 | I13: 28.98
E14: 商品和服务支出 | F14: 722.02 | G14: 722.02 | H14: 722.02 | I14: =SUM(I15:I22) -> 330.20 | J14: =SUM(J15:J22) -> 391.82
B15: 502 | C15: 01 | D15: 104001 | E15: 办公经费 | F15: 373.70 | G15: 373.70 | H15: 373.70 | I15: 235.20 | J15: 138.50
B16: 502 | C16: 02 | D16: 104001 | E16: 会议费 | F16: 217.92 | G16: 217.92 | H16: 217.92 | I16: 20.00 | J16: 197.92
B17: 502 | C17: 03 | D17: 104001 | E17: 培训费 | F17: 11.00 | G17: 11.00 | H17: 11.00 | I17: 5.00 | J17: 6.00
B18: 502 | C18: 05 | D18: 104001 | E18: 委托业务费 | F18: 10.00 | G18: 10.00 | H18: 10.00 | I18: 2.00 | J18: 8.00
B19: 502 | C19: 06 | D19: 104001 | E19: 公务接待费 | F19: 1.80 | G19: 1.80 | H19: 1.80 | I19: 1.80
B20: 502 | C20: 08 | D20: 104001 | E20: 公务用车运行维护费 | F20: 27.00 | G20: 27.00 | H20: 27.00 | I20: 27.00
B21: 502 | C21: 09 | D21: 104001 | E21: 维修（护）费 | F21: 7.00 | G21: 7.00 | H21: 7.00 | I21: 7.00
B22: 502 | C22: 99 | D22: 104001 | E22: 其他商品和服务支出 | F22: 73.60 | G22: 73.60 | H22: 73.60 | I22: 32.20 | J22: 41.40
E23: 资本性支出 | F23: 98.73 | G23: 98.73 | H23: 98.73 | J23: =SUM(J24) -> 98.73
B24: 503 | C24: 06 | D24: 104001 | E24: 设备购置 | F24: 98.73 | G24: 98.73 | H24: 98.73 | J24: 98.73
E25: 对事业单位经常性补助 | F25: 118.79 | G25: 118.79 | H25: 118.79 | I25: =SUM(I26:I27) -> 118.79
B26: 505 | C26: 01 | D26: 104001 | E26: 工资福利支出 | F26: 103.67 | G26: 103.67 | H26: 103.67 | I26: 103.67
B27: 505 | C27: 02 | D27: 104001 | E27: 商品和服务支出 | F27: 15.12 | G27: 15.12 | H27: 15.12 | I27: 15.12
E28: 对个人和家庭的补助 | F28: 53.65 | G28: 53.65 | H28: 53.65 | I28: =SUM(I29:I31) -> 39.05 | J28: =SUM(J29:J31) -> 14.60
B29: 509 | C29: 01 | D29: 104001 | E29: 社会福利和救助 | F29: 23.09 | G29: 23.09 | H29: 23.09 | I29: 23.09
B30: 509 | C30: 05 | D30: 104001 | E30: 离退休费 | F30: 15.96 | G30: 15.96 | H30: 15.96 | I30: 15.96
B31: 509 | C31: 99 | D31: 104001 | E31: 其他对个人和家庭补助 | F31: 14.60 | G31: 14.60 | H31: 14.60 | J31: 14.60

Sheet 附件6
B1: 附件6 | G1: 表3
B2: 一般公共预算支出预算表
B3: 部门：中国人民政治协商会议四川省德阳市委员会办公室 | I3: 金额单位：万元
B4: 项 目 | G4: 合计 | H4: 当年财政拨款安排 | I4: 上年结转安排
B5: 科目编码 | E5: 单位代码 | F5: 单位名称（科目）
B6: 类 | C6: 款 | D6: 项
F7: 合 计 | G7: 1,969.13 | H7: 1,969.13
F8: 中国人民政治协商会议四川省德阳市委员会办公室 | G8: 1,969.13 | H8: 1,969.13
B9: 201 | C9: 02 | D9: 01 | E9: 104001 | F9: 行政运行 | G9: 1,011.66 | H9: 1,011.66
B10: 201 | C10: 02 | D10: 02 | E10: 104001 | F10: 一般行政管理事务 | G10: 310.23 | H10: 310.23
B11: 201 | C11: 02 | D11: 4 | E11: 104001 | F11: 政协会议 | G11: 194.92 | H11: 194.92
B12: 201 | C12: 02 | D12: 50 | E12: 104001 | F12: 事业运行 | G12: 89.03 | H12: 89.03
B13: 208 | C13: 05 | D13: 01 | E13: 104001 | F13: 行政单位离退休 | G13: 45.84 | H13: 45.84
B14: 208 | C14: 05 | D14: 05 | E14: 104001 | F14: 机关事业单位基本养老保险缴费支出 | G14: 117.08 | H14: 117.08
B15: 208 | C15: 05 | D15: 06 | E15: 104001 | F15: 机关事业单位职业年金缴费支出 | G15: 58.54 | H15: 58.54
B16: 210 | C16: 11 | D16: 01 | E16: 104001 | F16: 行政单位医疗 | G16: 34.48 | H16: 34.48
B17: 210 | C17: 11 | D17: 02 | E17: 104001 | F17: 事业单位医疗 | G17: 3.32 | H17: 3.32
B18: 210 | C18: 11 | D18: 03 | E18: 104001 | F18: 公务员医疗补助 | G18: 16.23 | H18: 16.23
B19: 221 | C19: 02 | D19: 01 | E19: 104001 | F19: 住房公积金 | G19: 87.81 | H19: 87.81

Sheet 附件7
B1: 附件7 | H1: 表3-1
B2: 一般公共预算基本支出预算表
B3: 部门：中国人民政治协商会议四川省德阳市委员会办公室 | H3: 金额单位：万元
B4: 项 目 | F4: 基本支出
B5: 科目编码 | D5: 单位代码 | E5: 单位名称（科目） | F5: 合计 | G5: 人员经费 | H5: 公用经费
B6: 类 | C6: 款
E7: 合 计 | F7: 1,463.98 | G7: 1,174.52 | H7: 289.46
E8: 中国人民政治协商会议四川省德阳市委员会办公室 | F8: 1,463.98 | G8: 1,174.52 | H8: 289.46
E9: 工资福利支出 | F9: =SUM(G9:H9) -> 975.95 | G9: =SUM(G10:G13) -> 975.95
B10: 501 | C10: 01 | D10: 104001 | E10: 工资奖金津补贴 | F10: =SUM(G10:H10) -> 658.31 | G10: 658.31
B11: 501 | C11: 02 | D11: 104001 | E11: 社会保障缴费 | F11: 209.66 | G11: 209.66
B12: 501 | C12: 03 | D12: 104001 | E12: 住房公积金 | F12: 79.00 | G12: 79.00
B13: 501 | C13: 99 | D13: 104001 | E13: 其他工资福利支出 | F13: 28.98 | G13: 28.98
E14: 商品和服务支出 | F14: 330.20 | G14: =SUM(G15:G22) -> 55.86 | H14: =SUM(H15:H22) -> 274.34
B15: 502 | C15: 01 | D15: 104001 | E15: 办公经费 | F15: 235.20 | G15: 55.86 | H15: 179.34
B16: 502 | C16: 02 | D16: 104001 | E16: 会议费 | F16: 20.00 | H16: 20.00
B17: 502 | C17: 03 | D17: 104001 | E17: 培训费 | F17: 5.00 | H17: 5.00
B18: 502 | C18: 05 | D18: 104001 | E18: 委托业务费 | F18: 2.00 | H18: 2.00
B19: 502 | C19: 06 | D19: 104001 | E19: 公务接待费 | F19: 1.80 | H19: 1.80
B20: 502 | C20: 08 | D20: 104001 | E20: 公务用车运行维护费 | F20: 27.00 | H20: 27.00
B21: 502 | C21: 09 | D21: 104001 | E21: 维修（护）费 | F21: 7.00 | H21: 7.00
B22: 502 | C22: 99 | D22: 104001 | E22: 其他商品和服务支出 | F22: 32.20 | H22: 32.20
E23: 对事业单位经常性补助 | F23: 118.79 | G23: =SUM(G24:G25) -> 103.67 | H23: =SUM(H24:H25) -> 15.12
B24: 505 | C24: 01 | D24: 104001 | E24: 工资福利支出 | F24: 103.67 | G24: 103.67
B25: 505 | C25: 02 | D25: 104001 | E25: 商品和服务支出 | F25: 15.12 | H25: 15.12
E26: 对个人和家庭的补助 | F26: 39.05 | G26: =SUM(G27:G28) -> 39.05
B27: 509 | C27: 01 | D27: 104001 | E27: 社会福利和救助 | F27: 23.09 | G27: 23.09
B28: 509 | C28: 05 | D28: 104001 | E28: 离退休费 | F28: 15.96 | G28: 15.96

Sheet 附件8
B1: 附件8 | G1: 表3-2
B2: 一般公共预算项目支出预算表
B3: 部门：中国人民政治协商会议四川省德阳市委员会办公室 | G3: 金额单位：万元
B4: 科目编码 | E4: 单位代码 | F4: 单位名称（科目） | G4: 金额
B5: 类 | C5: 款 | D5: 项
F6: 合 计 | G6: 505.15
F7: 中国人民政治协商会议四川省德阳市委员会办公室 | G7: =G8+G16 -> 505.15
F8: 一般行政管理事务 | G8: =SUM(G9:G15) -> 310.23
B9: 201 | C9: 02 | D9: 02 | E9: 104001 | F9: 《德阳文史》简编版费用 | G9: 9.30
B10: 201 | C10: 02 | D10: 02 | E10: 104001 | F10: 离休人员护理费 | G10: 14.60
B11: 201 | C11: 02 | D11: 02 | E11: 104001 | F11: 文史资料编审及印刷费 | G11: 13.20
B12: 201 | C12: 02 | D12: 02 | E12: 104001 | F12: 政协书画院工作经费 | G12: 52.00
B13: 201 | C13: 02 | D13: 02 | E13: 104001 | F13: 驻会领导工作经费 | G13: 45.00
B14: 201 | C14: 02 | D14: 02 | E14: 104001 | F14: “德阳智慧政协”信息化平台建设 | G14: 98.73
B15: 201 | C15: 02 | D15: 02 | E15: 104001 | F15: 政协委员活动经费 | G15: 77.40
F16: 政协会议 | G16: =G17 -> 194.92
B17: 201 | C17: 02 | D17: 04 | E17: 104001 | F17: 政协全体会议 | G17: 194.92

Sheet 附件9
B1: 附件9 | I1: 表3-3
B2: 一般公共预算“三公”经费支出预算表
B3: 部门：中国人民政治协商会议四川省德阳市委员会办公室 | I3: 金额单位：万元
B4: 单位编码 | C4: 单位名称（科目） | D4: 当年财政拨款预算安排
D5: 合计 | E5: 因公出国（境）费用 | F5: 公务用车购置及运行费 | I5: 公务接待费
F6: 小计 | G6: 公务用车购置费 | H6: 公务用车运行费
C7: 合 计
B8: 104001 | C8: 中国人民政治协商会议四川省德阳市委员会办公室 | D8: 28.80 | F8: 27.00 | H8: 27.00 | I8: 1.80

Sheet 附件10
B1: 附件10 | I1: 表4
B2: 政府性基金支出预算表
B3: 部门：中国人民政治协商会议四川省德阳市委员会办公室 | I3: 金额单位：万元
B4: 项 目 | G4: 本年政府性基金预算支出
B5: 科目编码 | E5: 单位代码 | F5: 单位名称（科目） | G5: 合计 | H5: 基本支出 | I5: 项目支出
B6: 类 | C6: 款 | D6: 项
F7: 合 计
F8: 本表无数据

Sheet 附件11
B1: 附件11 | I1: 表4-1
B2: 政府性基金预算“三公”经费支出预算表
B3: 部门：中国人民政治协商会议四川省德阳市委员会办公室 | I3: 金额单位：万元
B4: 单位编码 | C4: 单位名称（科目） | D4: 当年财政拨款预算安排
D5: 合计 | E5: 因公出国（境）费用 | F5: 公务用车购置及运行费 | I5: 公务接待费
F6: 小计 | G6: 公务用车购置费 | H6: 公务用车运行费
C7: 合 计
C8: 本表无数据

Sheet 附件12
B1: 附件12 | I1: 表5
B2: 国有资本经营预算支出预算表
B3: 部门：中国人民政治协商会议四川省德阳市委员会办公室 | I3: 金额单位：万元
B4: 项 目 | G4: 本年国有资本经营预算支出
B5: 科目编码 | E5: 单位代码 | F5: 单位名称（科目） | G5: 合计 | H5: 基本支出 | I5: 项目支出
B6: 类 | C6: 款 | D6: 项
F7: 合 计
F8: 本表无数据

Sheet 附件13-1
A1: 附件13-1
A2: 德阳市市级部门2023年度年初预算绩效目标核心指标设置基础情况表 —— 部门整体支出
A3: 部门：中国人民政治协商会议四川省德阳市委员会办公室
A4: 指标设置 | M4: 指标设置说明（均用文字简要说明）
A5: 分层指标 | B5: 适用范围 | C5: 一级指标 | D5: 二级指标 | E5: 三级指标（末级） | M5: 指标设置依据 | S5: 指标值（计划值）设定来源
E6: 指标名称 | F6: 指标值及相关要素 | K6: 指标解释 | M6: 1.政策文件 | N6: 2.部门日常工作 | Q6: 3.社会机构评比、新闻媒体报道等 | R6: 4.其他参考指标 | S6: 1.计划标准 | T6: 2.行业标准 | U6: 3.历史标准 | V6: 4.预算支出标准 | W6: 5.其他标准
F7: 分值 | G7: 指标值（计划值） | H7: 度量单位 | I7: 指标性质 | J7: 指标方向 | N7: ①部门日常统计指标 | O7: ②部门管理（考核）指标 | P7: ③部门工作计划或项目实施方案
A8: 1 | B8: =A8+1 -> 2 | C8: 3 | D8: 4 | E8: 5 | F8: 6 | G8: 7 | H8: 8 | I8: 9 | J8: 10 | K8: 11 | M8: =K8+1 -> 12 | N8: =M8+1 -> 13 | O8: 14 | P8: 15 | Q8: 16 | R8: 17 | S8: 18 | T8: 19 | U8: 20 | V8: 21 | W8: 22
A9: 部门整体年度预期目标： | D9: 政协德阳市委员会办公室是政协德阳市委员会的工作机构，承担德阳市政协履行政治协商、民主监督、参政议政职能的各项服务保障协调工作。具体负责市政协全体会议、常委会议、主席会议和其他重要会议及重大活动的会务、文秘和后勤服务工作；负责组织实施市政协全体会议、常委会议、主席会议的决议、决定；草拟有关政协工作的文件；负责委员视察、调研、座谈、研讨及专门委员会其他活动的后勤服务工作；负责市政协与各区（市、县）政协及省政协和兄弟市政协的联系工作；密切联系市级各民主党派、工商联、人民团体；密切与市委、市人大、市政府办公室及有关部门的联系；负责机关党建和党风廉政建设；负责机关人事管理工作；负责机关精神文明建设的安排、落实、检查以及群团工作；完成领导交办的其他事项。
A10: 分值合计 | F10: =SUM(F11,F26) -> 100
A11: 一、基本运行绩效（40分） | F11: =SUM(F12:F25) -> 40
A12: 基本运行绩效 （40分） | B12: 部门整体 | C12: 部门整体基础绩效管理指标（40分） | D12: 预算管理（12分） | E12: 1.预算执行率（3分） | F12: 3 | K12: 部门预算项目年终预算执行情况。
E13: 2.预算结余率（低效无效率）（3分） | F13: 3 | K13: 部门预算项目年终资金结余情况。
E14: 3.“三公”经费控制率（3分） | F14: 3 | K14: 预算部门在“三公”经费方面的控制情况。
E15: 4.预算管理体系健全性（3分） | F15: 3 | K15: 预算部门内部是否构建层级分明、目标清晰、管控有力的预算管理体系。包括：①推动项目库建设情况。②实施项目排序管理情况。③实行定期清理、滚动管理情况。④强化内部资金统筹调控情况。
D16: 财务管理（4分） | E16: 1.管理制度健全性（2分） | F16: 2 | K16: 部门在推进厉行节约、规范财务行为方面的管理制度是否健全。包括：是否已制定有预算资金管理办法、厉行节约管理措施、内部财务管理制度等。
E17: 2.资金使用合规性（3分） | F17: 3 | K17: 部门资金使用是否符合相关的预算财务管理制度的规定。根据人大监督、纪检监察、巡视巡察、审计监督、财政监督、财政重点绩效管理等方面检查结果，反映部门上一年度部门预算管理是否合规。
D18: 资产管理（2分） | E18: 固定资产利用率（2分） | F18: 2 | K18: 预算部门实际在用固定资产总额与所有固定资产总额比率，用以反映和考核部门固定资产使用效率。固定资产使用率=（实际在用固定资产总额÷所有固定资产总额）×100%。
D19: 政府采购管理（3分） | E19: 政府采购规范性（3分） | F19: 3 | K19: 预算部门采购活动时效性情况、采购资金支付时效性情况和采购合同约定与采购文件的一致性情况。
D20: 预算绩效管理（18分） | E20: 1.绩效目标编制质量（4分） | F20: 4 | K20: 部门绩效目标是否要素完整、细化量化可衡量并集体决策。
E21: 2.事前绩效评估（3分） | F21: 3 | K21: 预算部门对新增预算项目、新增一定额度的延续性项目和追加预算项目实施事前绩效评估情况。
E22: 3.事中绩效监控（3分） | F22: 3 | K22: 预算部门对事中绩效运行监控工作的开展落实情况。
E23: 4.事后绩效自评（3分） | F23: 3 | K23: 预算部门对事后绩效自评工作的开展落实情况。
E24: 5.绩效结果应用（4分） | F24: 4 | K24: 预算部门各环节绩效管理结果应用落实情况。包括：整改问题、预算挂钩、应用反馈、完善政策、改进管理等。
E25: 6.绩效信息公开（1分） | F25: 1 | K25: 预算部门是否按要求在规定时间节点将规定的应公开绩效管理信息向社会公开。
A26: 二、重点履职绩效 （60分） | F26: 60
A27: 重点履职绩效 （60分） | B27: 一、召开德阳市政协九届二次全会（20分） | C27: 成本指标 (分值占该任务分值的10%)（必填） | E27: 经费支出 | F27: 2 | G27: 194.92 | H27: 万元 | I27: ≤ | J27: 负向 | K27: 在预算范围内保障会议开展 | P27: 按照九届二次会议筹备方案 | U27: 按照九届二次会议筹备方案
C28: 产出指标(分值占该任务分值的50%) | D28: 数量指标（必填） | E28: 召开次数 | F28: 3 | G28: 1 | H28: 次 | I28: ＝ | K28: 按期召开政协全体会议 | P28: 按照九届二次会议筹备方案 | U28: 按照九届二次会议筹备方案
D29: 数量指标（必填） | E29: 参会人数 | F29: 3 | G29: 400 | H29: 人 | I29: ≥ | J29: 正向 | K29: 参会人数不少于400人 | P29: 按照九届二次会议筹备方案 | U29: 按照九届二次会议筹备方案
D30: 质量指标（必填） | E30: 会议议程完成度 | F30: 2 | G30: 100 | H30: % | I30: ＝ | K30: 按照会议计划，完成各项会议议程 | P30: 按照九届二次会议筹备方案 | U30: 按照九届二次会议筹备方案
D31: 时效指标（必填） | E31: 会期 | F31: 2 | G31: 3 | H31: 天 | I31: ≥ | J31: 正向 | K31: 会期不少于3天 | P31: 按照九届二次会议筹备方案 | U31: 按照九届二次会议筹备方案
C32: 效益指标(分值占该任务分值的30%) | D32: 社会效益指标（可选） | E32: 影响范围 | F32: 6 | G32: 定性 | K32: 通过委员提案、建议等方式对德阳发展建言献策的影响范围 | P32: 按照九届二次会议筹备方案 | U32: 按照九届二次会议筹备方案
C33: 满意度指标(分值占该任务分值的10%) | D33: 服务对象满意度（可选） | E33: 参会人员满意度 | F33: 2 | G33: 95 | H33: % | I33: ≥ | J33: 正向 | K33: 参会人员满意度不低于95% | R33: 参会人员反馈 | U33: 按历年参会人员满意度
B34: 二、组织德阳市政协委员开展调研视察、协商活动（10分） | C34: 成本指标 (分值占该任务分值的10%)（必填） | E34: 经费支出 | F34: 1 | G34: 77.4 | H34: 万元 | I34: ≤ | J34: 负向 | K34: 在预算范围内保障调研视察、协商活动 | P34: 按市政协工作计划 | U34: 按市政协工作计划
C35: 产出指标(分值占该任务分值的50%) | D35: 数量指标（必填） | E35: 委员集体调研视察项目 | F35: 2 | G35: 6 | H35: 个 | I35: ≥ | J35: 正向 | K35: 委员集体调研视察项目不少于6个 | P35: 按照市政协年度工作计划 | W35: 按照市政协年度工作计划
D36: 数量指标（必填） | E36: 订阅委员报刊 | F36: 1 | G36: 200 | H36: 份 | I36: ≥ | J36: 正向 | K36: 为委员订阅《四川政协报》等报刊不少于200份 | N36: 部门日常统计指标 | U36: 按历年订阅委员报刊情况
D37: 质量指标（必填） | E37: 调研结果输出 | F37: 1 | G37: 6 | H37: 份 | I37: ≥ | J37: 正向 | K37: 委员集体调研视察项目形成调研报告、建议等书面材料 | P37: 按照市政协年度工作计划 | W37: 按照市政协年度工作计划
D38: 时效指标（必填） | E38: 委员各项工作完成时限 | F38: 1 | G38: 1 | H38: 年 | I38: ＝ | K38: 委员各项工作于2023年12月31日前完成 | N38: 部门日常统计指标 | U38: 按历年委员各项工作完成时限情况
C39: 效益指标(分值占该任务分值的30%) | D39: 社会效益指标（可选） | E39: 影响程度 | F39: 3 | G39: 定性 | K39: 委员调研视察、协商活动等德阳发展的影响程度 | N39: 部门日常统计指标 | U39: 按历年影响程度
C40: 满意度指标(分值占该任务分值的10%) | D40: 服务对象满意度（可选） | E40: 政协委员满意度 | F40: 1 | G40: 95 | H40: % | I40: ≥ | J40: 正向 | K40: 政协委员满意度不低于95% | R40: 政协委员反馈 | U40: 按历年政协委员满意度
B41: 三、文史资料编撰（20分） | C41: 成本指标 (分值占该任务分值的10%)（必填） | E41: 经费支出 | F41: 2 | G41: 22.5 | H41: 万元 | I41: ≤ | J41: 负向 | K41: 在预算范围内保障文史资料编撰工作 | P41: 按市政协工作计划 | U41: 按历年文史资料成本
C42: 产出指标(分值占该任务分值的50%) | D42: 数量指标（必填） | E42: 文史资料编撰数量 | F42: 4 | G42: 2 | H42: 本 | I42: ＝ | K42: 编撰两本文史资料 | N42: 部门日常统计指标 | U42: 按历年文史资料印制册数
D43: 质量指标（必填） | E43: 文史资料印刷误差率 | F43: 3 | G43: 0.05 | H43: % | I43: ≤ | J43: 负向 | K43: 文史资料印刷误差率不高于0.05% | R43: 省级出版社文史资料最高误差率 | W43: 省级出版社文史资料最高误差率
D44: 时效指标（必填） | E44: 文史资料印刷完成时限 | F44: 3 | G44: 1 | H44: 年 | I44: ＝ | K44: 文史资料印刷于2023年12月31日前完成 | N44: 部门日常统计指标 | U44: 按历年文史资料印刷时限
C45: 效益指标(分值占该任务分值的30%) | D45: 社会效益指标（可选） | E45: 产生社会效益 | F45: 6 | G45: 定性 | K45: 反映文史资料发挥政协文史职能，存史资政，记录德阳历史，产生社会效益情况 | N45: 部门日常统计指标 | U45: 按历年文史资料社会效益
C46: 满意度指标(分值占该任务分值的10%) | D46: 服务对象满意度（可选） | E46: 文史资料使用者满意度 | F46: 2 | G46: 95 | H46: % | I46: ≥ | J46: 正向 | K46: 文史资料使用者满意度不低于95% | N46: 部门日常统计指标 | U46: 按历年文史资料使用者满意度
B47: 四、机关治安保卫及配套物业管理工作（10分） | C47: 成本指标 (分值占该任务分值的10%)（必填） | E47: 经费支出 | F47: 1 | G47: 67.8 | H47: 万元 | I47: ≤ | J47: 负向 | K47: 在预算范围内保障机关物业管理工作 | R47: 按照政府采购物业服务合同 | W47: 按照政府采购物业服务合同
C48: 产出指标(分值占该任务分值的80%) | D48: 数量指标（必填） | E48: 物业服务人数 | F48: 2 | G48: 14 | H48: 人 | I48: ≥ | J48: 正向 | K48: 物业服务人数不少于14人 | R48: 按照政府采购物业服务合同 | W48: 按照政府采购物业服务合同
D49: 质量指标（必填） | E49: 物业服务区域 | F49: 2 | G49: 6000 | H49: 平方米 | I49: ≥ | J49: 正向 | K49: 物业服务区域含政协机关主楼、副楼及前后院，共计约6000平方米 | R49: 按照政府采购物业服务合同 | W49: 按照政府采购物业服务合同
D50: 质量指标（必填） | E50: 物业服务考核 | F50: 2 | G50: 90 | H50: 分 | I50: ≥ | J50: 正向 | K50: 按照德阳市物业服务考核标准对物业公司进行考核 | R50: 按照政府采购物业服务合同 | W50: 按照政府采购物业服务合同
D51: 时效指标（必填） | E51: 物业服务时限 | F51: 2 | G51: 1 | H51: 年 | I51: ＝ | K51: 保障机关2023年1月1日至2023年12月31日安全保卫及配套物业服务 | R51: 按照政府采购物业服务合同 | W51: 按照政府采购物业服务合同
C52: 满意度指标(分值占该任务分值的10%) | D52: 服务对象满意度（可选） | E52: 物业服务对象满意度 | F52: 1 | G52: 95 | H52: % | I52: ≥ | J52: 正向 | K52: 物业服务对象满意度不低于95% | N52: 按历年物业服务对象满意度 | U52: 按历年物业服务对象满意度

Sheet 附件13-2
A1: 附件13-2
A2: 德阳市市级部门2023年度年初预算绩效目标核心指标设置基础情况表 —— 一般项目支出
A3: 部门：中国人民政治协商会议四川省德阳市委员会办公室
A4: 项目名称： | C4: 政协全体会议 | J4: 预算来源类别： | M4: 1.一般公共预算 | O4: 项目实施单位： | Q4: 中国人民政治协商会议四川省德阳市委员会办公室 | V4: 项目类别： | X4: 行政运行类
A5: 指标设置 | O5: 指标设置说明（均用文字说明）
A6: 分层指标 | B6: 分类指标 | C6: 适用范围 | D6: 一级指标 | E6: 二级指标 | F6: 三级指标（末级） | O6: 指标设置依据 | U6: 指标值（计划值）设定来源
F7: 指标名称 | H7: 指标值及相关要素 | M7: 指标解释 | O7: 1.政策文件 | P7: 2.部门日常工作 | S7: 3.社会机构评比、新闻媒体报道等 | T7: 4.其他参考指标 | U7: 1.计划标准 | V7: 2.行业标准 | W7: 3.历史标准 | X7: 4.预算支出标准 | Y7: 5.其他标准
F8: 初步细化 | G8: 再细化 | H8: 分值 | I8: 指标值（计划值） | J8: 度量单位 | K8: 指标性质 | L8: 指标方向 | P8: ①部门日常统计指标 | Q8: ②部门管理（考核）指标 | R8: ③部门工作计划或项目实施方案
A9: 1 | B9: =A9+1 -> 2 | C9: =B9+1 -> 3 | D9: 4 | E9: 5 | F9: 6 | G9: 7 | H9: 8 | I9: 9 | J9: 10 | K9: 11 | L9: 12 | M9: 13 | O9: =M9+1 -> 14 | P9: =O9+1 -> 15 | Q9: 16 | R9: 17 | S9: 18 | T9: 19 | U9: 20 | V9: 21 | W9: 22 | X9: 23 | Y9: 24
A10: 项目年度预期总目标： | D10: 在中共德阳市委的领导下，深入贯彻落实中共二十大精神，突出团结民主两大主题，深入贯彻落实中共中央、省委和市委重大战略部署，以政协全会为载体，认真履行职能，深入学习习近平总书记系列讲话精神。团结和带领全会政协委员凝心聚力谋发展，围绕德阳经济社会发展、生态环境和可持续性发展等方面建言献策。政协全体会议是参加人民政协的各界别团体依照《中国人民政治协商会议章程》《中国共产党政治协商条例》履行政治协商、民主监督、参政议政职能的重要体现，充分发挥协商民主重要渠道和专门协商机构作用，为推动德阳政治、经济、文化、社会、生态文明发展作出积极贡献。
A11: 分值合计 | H11: =SUM(H12,H26) -> 100
A12: 一、共性指标（40分） | H12: =SUM(H13:H25) -> 40
A13: 共性指标（40分） | B13: 通用指标 | C13: 除政策项目之外的所有预算项目 | D13: 项目管理（40分） | E13: 1.立项决策（8分） | F13: 立项必要性★ | H13: 4 | M13: 项目内容是否与中央、省、市重大决策部署、部门职能和当年重点工作相关。
F14: 依据充分性 | H14: 4 | M14: 项目设立是否经过严格事前绩效评估论证，是否与部门职责相符，是否属于公共财政支持范围，是否符合地方事权支出责任划分原则，是否与相关部门同类项目或部门内部相关项目重复。
E15: 2.实施管理（6分） | F15: 制度完备性 | H15: 3 | M15: 项目的管理办法、实施办法（细则）、实施流程、申报指南等管理制度是否完善。
F16: 项目实施 | H16: 3 | M16: 项目调整手续是否完备；项目合同、验收报告、技术鉴定等资料是否齐全并及时归档；项目实施的人员条件、场地设备、信息支撑等是否落实到位
E17: 3.预算管理（12分） | F17: 预算执行率 | H17: 4 | M17: 相关时间节点实际支出占年度预算安排总额的比率。
F18: 资金结余★ | H18: 2 | M18: 项目资金结余的情况
F19: 使用合理★ | H19: 2 | M19: 项目资金使用结果或分配结果是否与绩效目标设置的计划值一致；是否按规定及时使用或分配项目资金
F20: 使用合规 | H20: 4 | M20: 项目资金使用有无违反相关法律法规、财经财务管理制度规定。
E21: 4.绩效目标编制质量（8分） | F21: 明确性 | H21: 4 | M21: 预期提供的产品、服务、效益和其他绩效目标明确、细化、量化，且可衡量。
F22: 合理性 | H22: 4 | M22: 设定的绩效目标符合实际需求且合理可行，资金需求与投入相匹配。
E23: 5.采购活动规范性（6分) | F23: 采购活动时效性 | H23: 3 | M23: 采购项目从发布采购方案到签订采购合同的耗时天数。
F24: 资金支付时效性 | H24: 2 | M24: 采购资金支付的时效性。
F25: 合同约定与采购文件的一致性 | H25: 1 | M25: 合同约定与采购文件确定事项的一致性。偏差的内容包括：采购标的的数量、价格、项目实施时间、地点、付款条件和期限等。
A26: 二、特性指标（60分） | H26: =SUM(H27) -> 60 | K26: 50 | L26: -
A27: 特性指标（60分） | B27: 行政运行类（包括会议、培训类项目） （60分 | C27: 一般公共服务等行政管理类项目 | D27: 小计 | H27: =SUM(H28:H38) -> 60
D28: 成本指标（5分） | E28: 成本指标（5分） | F28: 预算经费控制 | G28: 经费支出 | H28: 2 | I28: 194.92 | J28: 万元 | K28: ≤ | L28: 负向 | M28: 在预算范围内保障会议开展 | R28: 按照九届二次会议筹备方案 | W28: 按照九届二次会议筹备方案
E29: 成本指标（5分） | F29: 预算经费控制 | G29: 会议住宿标准 | H29: 1 | I29: 300 | J29: 人/天 | K29: ≤ | L29: 负向 | M29: 会议住宿严格执行德阳市会议管理办法，不突破300元/人.天的标准 | R29: 按照九届二次会议筹备方案 | W29: 按照九届二次会议筹备方案
E30: 成本指标（5分） | F30: 预算经费控制 | G30: 会议用餐标准 | H30: 2 | I30: 150 | J30: 人/天 | K30: ≤ | L30: 负向 | M30: 会议用餐严格执行德阳市会议管理办法，不突破150元/人.天的标准 | R30: 按照九届二次会议筹备方案 | W30: 按照九届二次会议筹备方案
D31: 产出指标（45分） | E31: 数量指标（10分） | F31: 召开次数 | G31: 召开次数 | H31: 4 | I31: 1 | J31: 次 | K31: ＝ | M31: 按期召开政协全体会议 | R31: 按照九届二次会议筹备方案 | W31: 按照九届二次会议筹备方案
F32: 会期 | G32: 会期 | H32: 3 | I32: 3 | J32: 天 | K32: ≥ | L32: 正向 | M32: 会期不少于3天 | R32: 按照九届二次会议筹备方案 | W32: 按照九届二次会议筹备方案
F33: 参会人数 | G33: 参会人数 | H33: 3 | I33: 400 | J33: 人 | K33: ≥ | L33: 正向 | M33: 参会人数不少于400人 | R33: 按照九届二次会议筹备方案 | W33: 按照九届二次会议筹备方案
E34: 质量指标（20分） | F34: 会议议程完成度 | G34: 会议议程完成度 | H34: 10 | I34: 100 | J34: % | K34: ＝ | M34: 按照会议计划，完成各项会议议程 | R34: 按照九届二次会议筹备方案 | W34: 按照九届二次会议筹备方案
F35: 参会人员出勤率 | G35: 参会人员出勤率 | H35: 10 | I35: 95 | J35: % | K35: ≥ | L35: 正向 | M35: 参会人员出勤率不低于95% | R35: 按照九届二次会议筹备方案 | W35: 按照九届二次会议筹备方案
E36: 时效指标（15分） | F36: 完成时间 | G36: 会议召开时间 | H36: 15 | I36: 1 | J36: 年 | K36: ＝ | M36: 按照市委批复的时间于2023年如期召开会议 | R36: 按照九届二次会议筹备方案 | W36: 按照九届二次会议筹备方案
D37: 效益指标（5分） | E37: 社会效益指标（5分） | F37: 社会效益（5分） | G37: 影响范围 | H37: 5 | I37: 定性 | M37: 通过委员提案、建议等方式对德阳发展建言献策的影响范围 | R37: 按照九届二次会议筹备方案 | W37: 按照九届二次会议筹备方案
D38: 满意度指标（5分） | E38: 服务对象满意度指标（5分） | F38: 社会公众或服务对象满意度 | G38: 参会人员满意度 | H38: 5 | I38: 95 | J38: % | K38: ≥ | L38: 正向 | M38: 参会人员满意度不低于95% | T38: 参会人员反馈 | W38: 按历年参会人员满意度

Sheet 附件14
A1: 附件14
A2: “三公”经费统计报表
A4: 2023年市级部门（单位）因公出国（境）费统计表（预算）
A5: 填报单位：中国人民政治协商会议四川省德阳市委员会办公室 | H5: 单位:万元
A6: 因公出国（境） | B6: 团组名称 | C6: 本单位参团人数（人） | D6: 资金来源
D7: 合计 | E7: 财政拨款 | G7: 其他资金
E8: 当年安排 | F8: 上年结余 | G8: 当年安排 | H8: 上年结余
A9: 合 计 | B9: 本表无数据
A10: 一、国际学术会议
A12: 二、国际科技研讨会
A14: 三、国际招商引资活动
A16: 四、国际文化交流活动及体育赛事参赛
A18: 五、境外培训及业务考察活动
A20: 六、其他因公出国（境）活动
A23: 2023年市级部门（单位）公务接待费统计表（预算）
A24: 填报单位：中国人民政治协商会议四川省德阳市委员会办公室 | F24: 单位:万元
A25: 公务接待 | B25: 资金来源
B26: 合计 | C26: 财政拨款 | E26: 其他资金
C27: 当年安排 | D27: 上年结余 | E27: 当年安排 | F27: 上年结余
A28: 合 计 | B28: 1.8 | C28: 1.8
A29: 一、外事活动接待 | B29: 0 | C29: 0
A30: 二、大型活动接待 | B30: 0 | C30: 0
A31: 三、省际交流合作接待 | B31: 0 | C31: 0
A32: 四、国内招商引资接待 | B32: 0 | C32: 0
A33: 五、其他接待 | B33: 1.8 | C33: 1.8
A35: 2023年市级部门（单位）公务用车购置及运行维护费统计表（预算）
A36: 填报单位：中国人民政治协商会议四川省德阳市委员会办公室 | F36: 单位:万元
A37: 公务用车购置及运行 | B37: 拟新购数量 (辆) | C37: 合计数量（辆） | D37: 资金来源
D38: 合计 | E38: 财政拨款 | G38: 其他资金
E39: 当年安排 | F39: 上年结余 | G39: 当年安排 | H39: 上年结余
A40: 合 计 | B40: 0 | C40: 7 | D40: 27 | E40: 27
A41: 一、公务用车购置 | B41: 0 | C41: 0 | D41: 0 | E41: 0
A42: 其中：一般公务用车 | B42: 0 | C42: 0 | D42: 0 | E42: 0
A43: 执法执勤用车 | B43: 0 | C43: 0 | D43: 0 | E43: 0
A44: 特种专业技术用车 | B44: 0 | C44: 0 | D44: 0 | E44: 0
A45: 二、公务用车运行维护费 | B45: 0 | C45: 7 | D45: 27 | E45: 27
